fUST/lending_fUST_20250606
["ID","MTS","AMOUNT","RATE_DAILY","PERIOD"]
[364691580,1749208260683,-440.0,0.00022739,2]
[364691581,1749208260692,-362.53114321,0.00022739,2]
[364691582,1749208260702,-440.0,0.00022739,2]
[364691583,1749208260712,-440.0,0.00022739,2]
[364691584,1749208260723,-440.0,0.00022739,2]
[364691585,1749208260732,-440.0,0.00022739,2]
[364691586,1749208260743,-440.0,0.00022739,2]
[364691587,1749208260752,-440.0,0.00022739,2]
[364691588,1749208260761,-440.0,0.00022739,2]
[364691589,1749208260770,-440.0,0.00022739,2]
[364691590,1749208260780,-440.0,0.00022739,2]
[364691591,1749208260789,-440.0,0.00022739,2]
[364691592,1749208260798,-223.97957048,0.00022739,2]
[364691593,1749208260807,-440.0,0.00022739,2]
[364691594,1749208260817,-500.0,0.00022739,2]
[364691595,1749208260826,-880.25,0.00022739,2]
[364691596,1749208260836,-440.0,0.00022739,2]
[364691597,1749208260845,-208.09233646,0.00022739,2]
[364691598,1749208260854,-440.0,0.00022739,2]
[364691599,1749208260863,-440.0,0.00022739,2]
[364691600,1749208260872,-440.0,0.00022739,2]
[364691601,1749208260883,-440.0,0.00022739,2]
[364691602,1749208260892,-706.33,0.00022739,2]
[364691603,1749208260901,-440.0,0.00022739,2]
[364691604,1749208260910,-440.0,0.00022739,2]
[364691605,1749208260919,-440.0,0.00022739,2]
[364691606,1749208260928,-415.49954515,0.00022739,2]
[364691607,1749208260938,-440.0,0.00022739,2]
[364691608,1749208260947,-440.0,0.00022739,2]
[364691609,1749208260956,-440.0,0.00022739,2]
[364691610,1749208260966,-490.39,0.00022739,2]
[364691611,1749208260976,-440.0,0.00022739,2]
[364691612,1749208260985,-440.0,0.00022739,2]
[364691613,1749208260995,-304.567395,0.00022739,2]
[364691614,1749208261004,-168.19292758,0.00022739,2]
[364691615,1749208261013,-440.0,0.00022739,2]
[364691616,1749208261022,-440.0,0.00022739,2]
[364691617,1749208261032,-440.0,0.00022739,2]
[364691618,1749208261041,-440.0,0.00022739,2]
[364691619,1749208261051,-1051.41,0.00022739,2]
[364691620,1749208261060,-440.0,0.00022739,2]
[364691621,1749208261070,-440.0,0.00022739,2]
[364691622,1749208261079,-440.0,0.00022739,2]
[364691623,1749208261089,-440.0,0.00022739,2]
[364691624,1749208261098,-743.09,0.00022739,2]
[364691625,1749208261107,-440.0,0.00022739,2]
[364691626,1749208261116,-440.0,0.00022739,2]
[364691627,1749208261126,-440.0,0.00022739,2]
[364691628,1749208261136,-473.51,0.00022739,2]
[364691629,1749208261145,-440.0,0.00022739,2]
[364691630,1749208261154,-440.0,0.00022739,2]
[364691631,1749208261163,-440.0,0.00022739,2]
[364691632,1749208261173,-440.0,0.00022739,2]
[364691633,1749208261182,-440.0,0.00022739,2]
[364691634,1749208261191,-381.71718167,0.00022739,2]
[364691635,1749208261200,-440.0,0.00022739,2]
[364691636,1749208261210,-440.0,0.00022739,2]
[364691637,1749208261219,-440.0,0.00022739,2]
[364691638,1749208261230,-440.0,0.00022739,2]
[364691639,1749208261239,-996.55,0.00022739,2]
[364691640,1749208261249,-440.0,0.00022739,2]
[364691641,1749208261258,-440.0,0.00022739,2]
[364691642,1749208261267,-440.0,0.00022739,2]
[364691643,1749208261277,-350.0,0.00022739,2]
[364691644,1749208261288,-440.0,0.00022739,2]
[364691645,1749208261299,-250.0,0.00022739,2]
[364691646,1749208261308,-440.0,0.00022739,2]
[364691647,1749208261319,-440.0,0.00022739,2]
[364691648,1749208261329,-440.0,0.00022739,2]
[364691649,1749208261338,-577.77513102,0.00022739,2]
[364691650,1749208261347,-440.0,0.00022739,2]
[364691651,1749208261356,-440.0,0.00022739,2]
[364691652,1749208261366,-440.0,0.00022739,2]
[364691653,1749208261376,-440.0,0.00022739,2]
[364691654,1749208261386,-3712.12,0.00022739,2]
[364691655,1749208261395,-390.0,0.00022739,2]
[364691656,1749208261405,-320.10235032,0.00022739,2]
[364691657,1749208261414,-440.0,0.00022739,2]
[364691658,1749208261423,-440.0,0.00022739,2]
[364691659,1749208261432,-440.0,0.00022739,2]
[364691660,1749208261444,-440.0,0.00022739,2]
[364691661,1749208261453,-440.0,0.00022739,2]
[364691662,1749208261463,-440.0,0.00022739,2]
[364691663,1749208261472,-440.0,0.00022739,2]
[364691664,1749208261484,-390.0,0.00022739,2]
[364691665,1749208261590,-410.0,0.00022739,2]
[364691666,1749208261600,-1189.9,0.00022739,2]
[364691667,1749208261609,-440.0,0.00022739,2]
[364691668,1749208261619,-440.0,0.00022739,2]
[364691669,1749208261628,-451.83,0.00022739,2]
[364691670,1749208261638,-1232.13,0.00022739,2]
[364691671,1749208261647,-440.98377226,0.00022739,2]
[364691672,1749208261657,-440.0,0.00022739,2]
[364691673,1749208261667,-440.0,0.00022739,2]
[364691674,1749208261676,-440.0,0.00022739,2]
[364691675,1749208261685,-440.0,0.00022739,2]
[364691676,1749208261694,-440.0,0.00022739,2]
[364691677,1749208261703,-440.0,0.00022739,2]
[364691678,1749208261713,-440.0,0.00022739,2]
[364691679,1749208261722,-512.55137291,0.00022739,2]
[364691680,1749208261731,-524.89470438,0.00022739,2]
[364691681,1749208261740,-375.74198869,0.00022739,2]
[364691682,1749208261750,-410.0,0.00022739,2]
[364691683,1749208261760,-440.0,0.00022739,2]
[364691684,1749208261770,-441.11185271,0.00022739,2]
[364691685,1749208261779,-160.20991369,0.00022739,2]
[364691686,1749208261788,-440.0,0.00022739,2]
[364691687,1749208261798,-554.55,0.00022739,2]
[364691688,1749208261807,-415.53304487,0.00022739,2]
[364691689,1749208261817,-440.0,0.00022739,2]
[364691690,1749208261826,-440.0,0.00022739,2]
[364691691,1749208261835,-244.24085666,0.00022739,2]
[364691692,1749208261844,-243.2182719,0.00022739,2]
[364691693,1749208261853,-713.45,0.00022739,2]
[364691694,1749208261862,-440.0,0.00022739,2]
[364691695,1749208261871,-440.0,0.00022739,2]
[364691696,1749208261881,-370.0,0.00022739,2]
[364691697,1749208261890,-440.0,0.00022739,2]
[364691698,1749208261901,-797.93,0.00022739,2]
[364691699,1749208261910,-440.0,0.00022739,2]
[364691700,1749208261919,-440.0,0.00022739,2]
[364691701,1749208261929,-327.77088841,0.00022739,2]
[364691702,1749208261938,-4936.21,0.00022739,2]
[364691703,1749208261947,-440.0,0.00022739,2]
[364691704,1749208261956,-440.0,0.00022739,2]
[364691705,1749208261967,-500.0,0.00022739,6]
[364691706,1749208261980,-440.0,0.00022739,2]
[364691707,1749208261991,-4681.65,0.00022739,2]
[364691708,1749208262000,-440.0,0.00022739,2]
[364691709,1749208262010,-440.0,0.00022739,2]
[364691710,1749208262019,-440.0,0.00022739,2]
[364691711,1749208262029,-440.0,0.00022739,2]
[364691712,1749208262039,-440.0,0.00022739,2]
[364691713,1749208262049,-744.29,0.00022739,2]
[364691714,1749208262059,-3000.48,0.00022739,2]
[364691715,1749208262068,-440.0,0.00022739,2]
[364691716,1749208262077,-440.0,0.00022739,2]
[364691717,1749208262087,-440.0,0.00022739,2]
[364691718,1749208262096,-1192.64,0.00022739,2]
[364691719,1749208262106,-1070.68,0.00022739,2]
[364691720,1749208262115,-440.0,0.00022739,2]
[364691721,1749208262125,-1944.33,0.00022739,2]
[364691722,1749208262136,-440.0,0.00022739,2]
[364691723,1749208262145,-333.31956456,0.00022739,2]
[364691724,1749208262155,-861.46,0.00022739,2]
[364691725,1749208262164,-440.0,0.00022739,2]
[364691726,1749208262173,-440.0,0.00022739,2]
[364691727,1749208262182,-440.0,0.00022739,2]
[364691728,1749208262192,-440.0,0.00022739,2]
[364691729,1749208262201,-608.5,0.00022739,2]
[364691730,1749208262211,-1769.86,0.00022739,2]
[364691731,1749208262221,-1639.72,0.00022739,2]
[364691732,1749208262230,-440.0,0.00022739,2]
[364691733,1749208262239,-440.0,0.00022739,2]
[364691734,1749208262249,-440.0,0.00022739,2]
[364691735,1749208262259,-440.0,0.00022739,2]
[364691736,1749208262268,-524.53,0.00022739,2]
[364691737,1749208262277,-440.0,0.00022739,2]
[364691738,1749208262287,-440.0,0.00022739,2]
[364691739,1749208262296,-440.0,0.00022739,2]
[364691740,1749208262306,-440.0,0.00022739,2]
[364691741,1749208262316,-440.0,0.00022739,2]
[364691742,1749208262326,-498.2,0.00022739,2]
[364691743,1749208262337,-410.0,0.00022739,2]
[364691744,1749208262346,-1771.61,0.00022739,2]
[364691745,1749208262355,-440.0,0.00022739,2]
[364691746,1749208262365,-1057.09,0.00022739,2]
[364691747,1749208262375,-400.0,0.00022739,2]
[364691748,1749208262385,-440.0,0.00022739,2]
[364691749,1749208262395,-2442.36,0.00022739,2]
[364691750,1749208262404,-156.70165054,0.00022739,2]
[364691751,1749208262413,-440.0,0.00022739,2]
[364691752,1749208262422,-486.94,0.00022739,2]
[364691753,1749208262431,-440.0,0.00022739,2]
[364691754,1749208262445,-470.12,0.00022739,2]
[364691755,1749208262455,-440.0,0.00022739,2]
[364691756,1749208262464,-818.92,0.00022739,2]
[364691757,1749208262473,-440.0,0.00022739,2]
[364691758,1749208262484,-440.0,0.00022739,2]
[364691759,1749208262493,-440.0,0.00022739,2]
[364691760,1749208262503,-440.0,0.00022739,2]
[364691761,1749208262513,-410.0,0.00022739,2]
[364691762,1749208262522,-440.0,0.00022739,2]
[364691763,1749208262532,-440.0,0.00022739,2]
[364691764,1749208262541,-440.0,0.00022739,2]
[364691765,1749208262551,-376.05839546,0.00022739,2]
[364691766,1749208262561,-440.0,0.00022739,2]
[364691767,1749208262570,-440.0,0.00022739,2]
[364691768,1749208262579,-440.0,0.00022739,2]
[364691769,1749208262588,-440.0,0.00022739,2]
[364691770,1749208262598,-440.0,0.00022739,2]
[364691771,1749208262607,-440.0,0.00022739,2]
[364691772,1749208262616,-475.12610633,0.00022739,2]
[364691773,1749208262625,-440.0,0.00022739,2]
[364691774,1749208262636,-440.0,0.00022739,2]
[364691775,1749208262646,-681.11,0.00022739,2]
[364691776,1749208262656,-988.23,0.00022739,2]
[364691777,1749208262666,-370.0,0.00022739,2]
[364691778,1749208262676,-440.0,0.00022739,2]
[364691779,1749208262687,-440.0,0.00022739,2]
[364691780,1749208262697,-440.0,0.00022739,2]
[364691781,1749208262708,-440.0,0.00022739,2]
[364691782,1749208262718,-440.0,0.00022739,2]
[364691783,1749208262728,-440.0,0.00022739,2]
[364691784,1749208262737,-3244.81,0.00022739,2]
[364691785,1749208262747,-2240.57,0.00022739,2]
[364691786,1749208262756,-1989.85,0.00022739,2]
[364691787,1749208262765,-1580.17,0.00022739,2]
[364691788,1749208262775,-440.0,0.00022739,2]
[364691789,1749208262785,-943.15,0.00022739,2]
[364691790,1749208262793,-6747.86,0.00022739,2]
[364691791,1749208262802,-440.0,0.00022739,2]
[364691792,1749208262812,-440.0,0.00022739,2]
[364691793,1749208262821,-410.0,0.00022739,2]
[364691794,1749208262830,-440.0,0.00022739,2]
[364691795,1749208262841,-4117.32,0.00022739,2]
[364691796,1749208262850,-440.0,0.00022739,2]
[364691797,1749208262859,-378.25562369,0.00022739,2]
[364691798,1749208262868,-517.04,0.00022739,2]
[364691799,1749208262877,-440.0,0.00022739,2]
[364691800,1749208262887,-718.67,0.00022739,2]
[364691801,1749208262895,-440.0,0.00022739,2]
[364691802,1749208262905,-468.27694409,0.00022739,2]
[364691803,1749208262914,-430.0,0.00022739,2]
[364691804,1749208262924,-440.0,0.00022739,2]
[364691805,1749208262934,-448.56,0.00022739,2]
[364691806,1749208262943,-440.0,0.00022739,2]
[364691807,1749208262953,-440.0,0.00022739,2]
[364691808,1749208262962,-542.03,0.00022739,2]
[364691809,1749208262972,-1229.28,0.00022739,2]
[364691810,1749208262981,-440.0,0.00022739,2]
[364691811,1749208262990,-170.62152779,0.00022739,2]
[364691812,1749208263000,-440.0,0.00022739,2]
[364691813,1749208263010,-4617.81,0.00022739,2]
[364691814,1749208263021,-706.65,0.00022739,2]
[364691815,1749208263030,-599.5,0.00022739,2]
[364691816,1749208263040,-440.0,0.00022739,2]
[364691817,1749208263050,-440.0,0.00022739,2]
[364691818,1749208263062,-440.0,0.00022739,2]
[364691819,1749208263071,-552.09,0.00022739,2]
[364691820,1749208263081,-440.0,0.00022739,2]
[364691821,1749208263090,-440.0,0.00022739,2]
[364691822,1749208263100,-512.84,0.00022739,2]
[364691823,1749208263109,-440.0,0.00022739,2]
[364691824,1749208263118,-440.0,0.00022739,2]
[364691825,1749208263129,-440.0,0.00022739,2]
[364691826,1749208263140,-591.15,0.00022739,2]
[364691827,1749208263149,-440.0,0.00022739,2]
[364691828,1749208263159,-440.0,0.00022739,2]
[364691829,1749208263169,-626.0,0.00022762,2]
[364691830,1749208263178,-1815.222872,0.00022766,2]
[364691831,1749208263188,-1100.0,0.00022775,2]
[364691832,1749208263198,-626.0,0.0002279,2]
[364691833,1749208263208,-626.0,0.00022817,2]
[364691834,1749208263217,-1153.81801304,0.00022821,2]
[364691835,1749208263228,-5326.47285906,0.00022831,8]
[364691836,1749208263238,-626.0,0.00022845,2]
[364691837,1749208263248,-626.0,0.00022872,2]
[364691838,1749208263257,-500.0,0.00022899,2]
[364691839,1749208263267,-500.0,0.00022899,2]
[364691840,1749208263276,-500.0,0.00022899,2]
[364691841,1749208263286,-500.0,0.00022899,2]
[364691842,1749208263295,-500.0,0.00022899,2]
[364691843,1749208263306,-500.0,0.00022899,2]
[364691844,1749208263315,-235.19268135,0.00022899,2]
[364691845,1749208263325,-626.0,0.00022899,2]
[364691846,1749208263335,-110090.4359199,0.000229,7]
[364691847,1749208263344,-6821.44282732,0.00022913,2]
[364691848,1749208263354,-626.0,0.00022927,2]
[364691849,1749208263363,-626.0,0.00022954,2]
[364691850,1749208263373,-500.0,0.00022966,2]
[364691851,1749208263383,-680.66545233,0.00022966,2]
[364691852,1749208263393,-626.0,0.00022982,2]
[364691853,1749208263403,-160.0,0.00023,3]
[364691854,1749208263413,-160.0,0.00023,3]
[364691855,1749208263422,-33000.0,0.00023,15]
[364691856,1749208263431,-834.50537533,0.00023,3]
[364691857,1749208263446,-160.0,0.00023,3]
[364691858,1749208263456,-160.0,0.00023,3]
[364691859,1749208263465,-160.0,0.00023,3]
[364691860,1749208263475,-626.0,0.00023009,2]
[364691861,1749208263486,-331.85422467,0.00023013,2]
[364691862,1749208263496,-390.0,0.00023013,2]
[364691863,1749208263506,-440.0,0.00023013,2]
[364691864,1749208263516,-440.0,0.00023013,2]
[364691865,1749208263527,-440.0,0.00023013,2]
[364691866,1749208263536,-440.0,0.00023013,2]
[364691867,1749208263547,-440.0,0.00023013,2]
[364691868,1749208263556,-440.0,0.00023013,2]
[364691869,1749208263566,-440.0,0.00023013,2]
[364691870,1749208263575,-440.0,0.00023013,2]
[364691871,1749208263585,-440.0,0.00023013,2]
[364691872,1749208263594,-440.0,0.00023013,2]
[364691873,1749208263604,-440.0,0.00023013,2]
[364691874,1749208263614,-440.0,0.00023013,2]
[364691875,1749208263624,-152.36945495,0.00023013,2]
[364691876,1749208263633,-440.0,0.00023013,2]
[364691877,1749208263643,-440.0,0.00023013,2]
[364691878,1749208263653,-440.0,0.00023013,2]
[364691879,1749208263663,-236.95269868,0.00023013,2]
[364691880,1749208263673,-440.0,0.00023013,2]
[364691881,1749208263683,-436.6897307,0.00023013,2]
[364691882,1749208263692,-440.0,0.00023013,2]
[364691883,1749208263702,-440.0,0.00023013,2]
[364691884,1749208263711,-570.41979953,0.00023013,2]
[364691885,1749208263721,-515.34722228,0.00023013,2]
[364691886,1749208263731,-440.0,0.00023013,2]
[364691887,1749208263740,-342.98986865,0.00023013,2]
[364691888,1749208263750,-440.0,0.00023013,2]
[364691889,1749208263760,-440.0,0.00023013,2]
[364691890,1749208263770,-321.23567481,0.00023013,2]
[364691891,1749208263779,-276.00834787,0.00023013,2]
[364691892,1749208263789,-440.0,0.00023013,2]
[364691893,1749208263799,-440.0,0.00023013,2]
[364691894,1749208263810,-440.0,0.00023013,2]
[364691895,1749208263821,-440.0,0.00023013,2]
[364691896,1749208263830,-440.0,0.00023013,2]
[364691897,1749208263841,-440.0,0.00023013,2]
[364691898,1749208263851,-440.0,0.00023013,2]
[364691899,1749208263958,-440.0,0.00023013,2]
[364691900,1749208263968,-440.0,0.00023013,2]
[364691901,1749208263979,-440.0,0.00023013,2]
[364691902,1749208263989,-440.0,0.00023013,2]
[364691903,1749208263999,-440.0,0.00023013,2]
[364691904,1749208264008,-440.0,0.00023013,2]
[364691905,1749208264018,-440.0,0.00023013,2]
[364691906,1749208264027,-440.0,0.00023013,2]
[364691907,1749208264037,-440.0,0.00023013,2]
[364691908,1749208264047,-465.76786649,0.00023013,2]
[364691909,1749208264058,-440.0,0.00023013,2]
[364691910,1749208264068,-440.0,0.00023013,2]
[364691911,1749208264078,-400.0,0.00023013,2]
[364691912,1749208264087,-440.0,0.00023013,2]
[364691913,1749208264097,-440.0,0.00023013,2]
[364691914,1749208264107,-394.12063811,0.00023013,2]
[364691915,1749208264117,-440.0,0.00023013,2]
[364691916,1749208264127,-440.0,0.00023013,2]
[364691917,1749208264137,-440.0,0.00023013,2]
[364691918,1749208264147,-379.61778017,0.00023013,2]
[364691919,1749208264157,-440.0,0.00023013,2]
[364691920,1749208264167,-440.0,0.00023013,2]
[364691921,1749208264177,-440.0,0.00023013,2]
[364691922,1749208264187,-440.0,0.00023013,2]
[364691923,1749208264196,-500.0,0.00023013,2]
[364691924,1749208264206,-880.25,0.00023013,2]
[364691925,1749208264215,-400.0,0.00023013,2]
[364691926,1749208264225,-420.0,0.00023013,2]
[364691927,1749208264234,-440.0,0.00023013,2]
[364691928,1749208264244,-440.0,0.00023013,2]
[364691929,1749208264253,-440.0,0.00023013,2]
[364691930,1749208264262,-706.33,0.00023013,2]
[364691931,1749208264271,-396.63810257,0.00023013,2]
[364691932,1749208264281,-440.0,0.00023013,2]
[364691933,1749208264297,-440.0,0.00023013,2]
[364691934,1749208264312,-440.0,0.00023013,2]
[364691935,1749208264322,-440.0,0.00023013,2]
[364691936,1749208264331,-152.47957875,0.00023013,2]
[364691937,1749208264341,-490.39,0.00023013,2]
[364691938,1749208264351,-440.0,0.00023013,2]
[364691939,1749208264360,-440.0,0.00023013,2]
[364691940,1749208264370,-440.0,0.00023013,2]
[364691941,1749208264379,-440.0,0.00023013,2]
[364691942,1749208264390,-440.0,0.00023013,2]
[364691943,1749208264401,-440.0,0.00023013,2]
[364691944,1749208264412,-1051.41,0.00023013,2]
[364691945,1749208264422,-440.0,0.00023013,2]
[364691946,1749208264432,-440.0,0.00023013,2]
[364691947,1749208264445,-440.0,0.00023013,2]
[364691948,1749208264456,-440.0,0.00023013,2]
[364691949,1749208264468,-743.09,0.00023013,2]
[364691950,1749208264479,-440.0,0.00023013,2]
[364691951,1749208264488,-440.0,0.00023013,2]
[364691952,1749208264499,-440.0,0.00023013,2]
[364691953,1749208264509,-473.51,0.00023013,2]
[364691954,1749208264521,-440.0,0.00023013,2]
[364691955,1749208264531,-389.65694276,0.00023013,2]
[364691956,1749208264541,-440.0,0.00023013,2]
[364691957,1749208264553,-440.0,0.00023013,2]
[364691958,1749208264564,-440.0,0.00023013,2]
[364691959,1749208264574,-440.0,0.00023013,2]
[364691960,1749208264584,-440.0,0.00023013,2]
[364691961,1749208264594,-440.0,0.00023013,2]
[364691962,1749208264604,-440.0,0.00023013,2]
[364691963,1749208264613,-996.55,0.00023013,2]
[364691964,1749208264622,-260.06070505,0.00023013,2]
[364691965,1749208264631,-410.0,0.00023013,2]
[364691966,1749208264641,-585.96863246,0.00023013,2]
[364691967,1749208264650,-440.0,0.00023013,2]
[364691968,1749208264661,-440.0,0.00023013,2]
[364691969,1749208264670,-181.07779901,0.00023013,2]
[364691970,1749208264680,-570.8897982,0.00023013,2]
[364691971,1749208264690,-334.29699765,0.00023013,2]
[364691972,1749208264700,-440.0,0.00023013,2]
[364691973,1749208264709,-440.0,0.00023013,2]
[364691974,1749208264719,-3712.12,0.00023013,2]
[364691975,1749208264729,-440.0,0.00023013,2]
[364691976,1749208264738,-440.0,0.00023013,2]
[364691977,1749208264748,-440.0,0.00023013,2]
[364691978,1749208264758,-440.0,0.00023013,2]
[364691979,1749208264768,-193.69648315,0.00023013,2]
[364691980,1749208264778,-440.0,0.00023013,2]
[364691981,1749208264788,-440.0,0.00023013,2]
[364691982,1749208264803,-1189.9,0.00023013,2]
[364691983,1749208264812,-440.0,0.00023013,2]
[364691984,1749208264822,-440.0,0.00023013,2]
[364691985,1749208264831,-451.83,0.00023013,2]
[364691986,1749208264840,-1232.13,0.00023013,2]
[364691987,1749208264850,-440.0,0.00023013,2]
[364691988,1749208264859,-440.0,0.00023013,2]
[364691989,1749208264869,-440.0,0.00023013,2]
[364691990,1749208264878,-235.64708101,0.00023013,2]
[364691991,1749208264889,-440.0,0.00023013,2]
[364691992,1749208264898,-440.0,0.00023013,2]
[364691993,1749208264907,-440.0,0.00023013,2]
[364691994,1749208264917,-339.29015856,0.00023013,2]
[364691995,1749208264926,-554.55,0.00023013,2]
[364691996,1749208264939,-440.0,0.00023013,2]
[364691997,1749208264948,-541.97033951,0.00023013,2]
[364691998,1749208264958,-440.0,0.00023013,2]
[364691999,1749208264967,-713.45,0.00023013,2]
[364692000,1749208264976,-440.0,0.00023013,2]
[364692001,1749208264986,-440.0,0.00023013,2]
[364692002,1749208264995,-440.0,0.00023013,2]
[364692003,1749208265005,-797.93,0.00023013,2]
[364692004,1749208265014,-406.95720819,0.00023013,2]
[364692005,1749208265024,-440.0,0.00023013,2]
[364692006,1749208265033,-4936.21,0.00023013,2]
[364692007,1749208265043,-440.0,0.00023013,2]
[364692008,1749208265054,-440.0,0.00023013,2]
[364692009,1749208265064,-440.0,0.00023013,2]
[364692010,1749208265074,-4681.65,0.00023013,2]
[364692011,1749208265084,-177.57076198,0.00023013,2]
[364692012,1749208265094,-402.09595152,0.00023013,2]
[364692013,1749208265104,-440.0,0.00023013,2]
[364692014,1749208265113,-440.0,0.00023013,2]
[364692015,1749208265123,-440.0,0.00023013,2]
[364692016,1749208265132,-744.29,0.00023013,2]
[364692017,1749208265142,-3000.48,0.00023013,2]
[364692018,1749208265152,-440.0,0.00023013,2]
[364692019,1749208265161,-440.0,0.00023013,2]
[364692020,1749208265171,-440.0,0.00023013,2]
[364692021,1749208265181,-1192.64,0.00023013,2]
[364692022,1749208265190,-1070.68,0.00023013,2]
[364692023,1749208265200,-440.0,0.00023013,2]
[364692024,1749208265210,-1944.33,0.00023013,2]
[364692025,1749208265220,-440.0,0.00023013,2]
[364692026,1749208265229,-861.46,0.00023013,2]
[364692027,1749208265239,-440.0,0.00023013,2]
[364692028,1749208265248,-440.0,0.00023013,2]
[364692029,1749208265258,-440.0,0.00023013,2]
[364692030,1749208265267,-440.0,0.00023013,2]
[364692031,1749208265277,-608.5,0.00023013,2]
[364692032,1749208265288,-1769.86,0.00023013,2]
[364692033,1749208265299,-1639.72,0.00023013,2]
[364692034,1749208265308,-440.0,0.00023013,2]
[364692035,1749208265318,-440.0,0.00023013,2]
[364692036,1749208265328,-482.49311707,0.00023013,2]
[364692037,1749208265337,-399.42299405,0.00023013,2]
[364692038,1749208265347,-524.53,0.00023013,2]
[364692039,1749208265357,-440.0,0.00023013,2]
[364692040,1749208265367,-440.0,0.00023013,2]
[364692041,1749208265376,-440.0,0.00023013,2]
[364692042,1749208265388,-380.0,0.00023013,2]
[364692043,1749208265397,-440.0,0.00023013,2]
[364692044,1749208265407,-498.2,0.00023013,2]
[364692045,1749208265417,-1771.61,0.00023013,2]
[364692046,1749208265427,-440.0,0.00023013,2]
[364692047,1749208265436,-1057.09,0.00023013,2]
[364692048,1749208265450,-440.0,0.00023013,2]
[364692049,1749208265460,-2442.36,0.00023013,2]
[364692050,1749208265470,-440.0,0.00023013,2]
[364692051,1749208265479,-486.94,0.00023013,2]
[364692052,1749208265490,-440.0,0.00023013,2]
[364692053,1749208265501,-470.12,0.00023013,2]
[364692054,1749208265511,-440.0,0.00023013,2]
[364692055,1749208265522,-818.92,0.00023013,2]
[364692056,1749208265531,-440.0,0.00023013,2]
[364692057,1749208265541,-440.0,0.00023013,2]
[364692058,1749208265550,-440.0,0.00023013,2]
[364692059,1749208265560,-440.0,0.00023013,2]
[364692060,1749208265570,-440.0,0.00023013,2]
[364692061,1749208265580,-440.0,0.00023013,2]
[364692062,1749208265589,-440.0,0.00023013,2]
[364692063,1749208265599,-440.0,0.00023013,2]
[364692064,1749208265609,-301.16929286,0.00023013,2]
[364692065,1749208265619,-367.76061139,0.00023013,2]
[364692066,1749208265629,-440.0,0.00023013,2]
[364692067,1749208265639,-440.0,0.00023013,2]
[364692068,1749208265649,-440.0,0.00023013,2]
[364692069,1749208265659,-440.0,0.00023013,2]
[364692070,1749208265669,-440.0,0.00023013,2]
[364692071,1749208265679,-681.11,0.00023013,2]
[364692072,1749208265689,-988.23,0.00023013,2]
[364692073,1749208265699,-440.0,0.00023013,2]
[364692074,1749208265709,-440.0,0.00023013,2]
[364692075,1749208265719,-440.0,0.00023013,2]
[364692076,1749208265729,-440.0,0.00023013,2]
[364692077,1749208265739,-440.0,0.00023013,2]
[364692078,1749208265750,-440.0,0.00023013,2]
[364692079,1749208265760,-3244.81,0.00023013,2]